[Event "GER-ch Youth U16w 2019"]
[Site "Willingen"]
[Date "2019.06.12"]
[Round "5.4"]
[White "Basovskiy, Jana"]
[Black "Sokolowski, Judith"]
[Result "1-0"]
[ECO "B40"]
[WhiteElo "1761"]
[BlackElo "1749"]
[Annotator "NA"]
[PlyCount "78"]
[EventDate "2019.06.07"]
[EventType "swiss"]
[EventRounds "9"]
[EventCountry "GER"]
[SourceTitle "playchess.com"]
[Source "ChessBase"]
[SourceQuality "1"]
[TimeControl "40/5400+30:1800+30"]

1. e4 {[%emt 0:00:00]} c5 {[%emt 0:00:00]} 2. Nf3 {[%emt 0:00:00]} e6 {[%emt 0:00:00]} 3. d4 {[%emt 0:00:00]} cxd4 {[%emt 0:00:00]} 4. Nxd4 {[%emt 0:00:00]} Nf6 {[%emt 0:00:00]} 5. Nc3 {[%emt 0:00:00]} Nc6 {[%emt 0:00:00]} 6. Ndb5 {[%emt 0:00:04]} Bb4 {[%emt 0:00:16]} 7. a3 {[%emt 0:00:02]} Bxc3+ {[%emt 0:00:09]} 8. Nxc3 {[%emt 0:00:03]} d5 {[%emt 0:00:12]} 9. exd5 {[%emt 0:00:08]} Nxd5 {[%emt 0:00:12]} 10. Nxd5 {[%emt 0:00:40]} exd5 {[%emt 0:00:12]} 11. Bd3 {[%emt 0:01:34]} Qe7+ {[%emt 0:00:42]} 12. Qe2 {[%emt 0:00:39]} Qxe2+ {[%emt 0:00:08]} 13. Kxe2 {[%emt 0:01:45]} Ne5 {[%emt 0:01:10]} 14. Bb5+ {[%emt 0:05:31]} Bd7 {[%emt 0:02:24]} 15. Bxd7+ {[%emt 0:00:05]} Kxd7 {[%emt 0:00:55]} 16. Bf4 {[%emt 0:01:16]} Rhe8 {[%emt 0:09:56]} 17. Bxe5 {[%emt 0:10:28]} Rxe5+ {[%emt 0:00:38]} 18. Kd2 {[%emt 0:06:25]} Rae8 {[%emt 0:02:26]} 19. Rae1 {[%emt 0:00:07]} Kc6 {[%emt 0:08:37]} 20. Rxe5 {[%emt 0:08:21]} Rxe5 {[%emt 0:00:04]} 21. Re1 {[%emt 0:13:20]} Rxe1 {[%emt 0:11:54]} 22. Kxe1 {[%emt 0:00:01]} Kc5 {[%emt 0:00:36]} 23. Kd2 {[%emt 0:00:05]} a5 {[%emt 0:30:09]} 24. b3 {[%emt 0:01:39]} b5 {[%emt 0:01:33]} 25. Kd3 {[%emt 0:00:58]} f5 {[%emt 0:06:39]} 26. c3 {[%emt 0:04:20]} g6 {[%emt 0:13:20]} 27. h4 {[%emt 0:10:20]} Kc6 {[%emt 0:08:53]} 28. b4 {[%emt 0:06:38]} a4 {[%emt 0:00:33]} 29. Ke3 {[%emt 0:00:32]} Kd7 {[%emt 0:00:32]} 30. Kf4 {[%emt 0:17:59]} Ke6 {[%emt 0:00:03]} 31. Kg5 {[%emt 0:00:49]} Kf7 {[%emt 0:01:28]} 32. Kh6 {[%emt 0:00:15]} Kg8 {[%emt 0:00:55]} 33. f4 {[%emt 0:00:30]} Kh8 {[%emt 0:00:15]} 34. h5 {[%emt 0:00:23]} gxh5 {[%emt 0:00:30]} 35. Kxh5 {[%emt 0:00:29]} Kg7 {[%emt 0:00:11]} 36. Kg5 {[%emt 0:00:04]} h5 {[%emt 0:01:06]} 37. Kxf5 {[%emt 0:00:28]} Kh6 {[%emt 0:00:22]} 38. g3 {[%emt 0:00:45]} h4 {[%emt 0:00:30]} 39. gxh4 {[%emt 0:00:09]} Kh5 {[%emt 0:00:20] normal Ke4} 1-0

[Event "GER-ch Youth U16w 2019"]
[Site "Willingen"]
[Date "2019.06.12"]
[Round "5.5"]
[White "Brunner, Sophia"]
[Black "Stowicek, Yara Mathilda"]
[Result "1/2-1/2"]
[ECO "A43"]
[WhiteElo "1839"]
[BlackElo "1692"]
[Annotator "NA"]
[PlyCount "91"]
[EventDate "2019.06.07"]
[EventType "swiss"]
[EventRounds "9"]
[EventCountry "GER"]
[SourceTitle "playchess.com"]
[Source "ChessBase"]
[SourceQuality "1"]
[TimeControl "40/5400+30:1800+30"]

1. d4 {[%emt 0:00:00]} Nf6 {[%emt 0:00:00]} 2. Nf3 {[%emt 0:00:00]} c5 {[%emt 0:00:00]} 3. d5 {[%emt 0:00:11]} e6 {[%emt 0:00:11]} 4. Nc3 {[%emt 0:00:29]} b5 {[%emt 0:01:12]} 5. dxe6 {[%emt 0:01:43]} fxe6 {[%emt 0:01:01]} 6. Nxb5 {[%emt 0:01:21]} d5 {[%emt 0:02:13]} 7. c3 {[%emt 0:15:42]} a6 {[%emt 0:04:34]} 8. Na3 {[%emt 0:00:10]} Bd6 {[%emt 0:00:48]} 9. Bg5 {[%emt 0:03:28]} Qb6 {[%emt 0:05:07]} 10. Qb3 {[%emt 0:10:35]} Qa5 {[%emt 0:08:32]} 11. Bxf6 {[%emt 0:11:38]} gxf6 {[%emt 0:00:32]} 12. Qd1 {[%emt 0:00:23]} Bb7 {[%emt 0:06:49]} 13. Nc4 {[%emt 0:02:12]} Qc7 {[%emt 0:04:24]} 14. Nxd6+ {[%emt 0:00:15]} Qxd6 {[%emt 0:00:11]} 15. e4 {[%emt 0:05:14]} Nd7 {[%emt 0:07:00]} 16. exd5 {[%emt 0:03:10]} exd5 {[%emt 0:02:35]} 17. Qd3 {[%emt 0:08:55]} O-O-O {[%emt 0:07:46]} 18. O-O-O {[%emt 0:02:05]} Ne5 {[%emt 0:01:59]} 19. Nxe5 {[%emt 0:02:32]} fxe5 {[%emt 0:00:31]} 20. Be2 {[%emt 0:03:00]} Kc7 {[%emt 0:01:56]} 21. h3 {[%emt 0:07:46]} h6 {[%emt 0:05:35]} 22. Qd2 {[%emt 0:04:22]} Rhg8 {[%emt 0:03:08]} 23. Rhg1 {[%emt 0:01:12]} Qf6 {[%emt 0:02:27]} 24. Bf3 {[%emt 0:06:03]} Rgf8 {[%emt 0:06:54]} 25. Rgf1 {[%emt 0:03:03]} Rg8 {[%emt 0:04:43]} 26. Qe2 {[%emt 0:03:06]} Qg5+ {[%emt 0:04:14]} 27. Qe3 {[%emt 0:01:06]} e4 {[%emt 0:01:24]} 28. Bg4 {[%emt 0:01:07]} h5 {[%emt 0:01:08]} 29. Be6 {[%emt 0:00:57]} Qxe3+ {[%emt 0:03:23]} 30. fxe3 {[%emt 0:01:06]} Rxg2 {[%emt 0:01:56]} 31. Rf5 {[%emt 0:00:15]} Re2 {[%emt 0:01:59]} 32. Bxd5 {[%emt 0:01:01]} Bxd5 {[%emt 0:00:42]} 33. Rdxd5 {[%emt 0:00:05]} Rg8 {[%emt 0:02:33]} 34. Rg5 {[%emt 0:00:19]} Rf8 {[%emt 0:00:22]} 35. Rdf5 {[%emt 0:00:08]} Rd8 {[%emt 0:00:18]} 36. Rxc5+ {[%emt 0:00:23]} Kb6 {[%emt 0:00:29]} 37. Rcd5 {[%emt 0:00:50]} Rf8 {[%emt 0:00:26]} 38. Rgf5 {[%emt 0:01:30]} Rg8 {[%emt 0:00:12]} 39. Rd2 {[%emt 0:01:14]} Rxe3 {[%emt 0:02:45]} 40. Rxh5 {[%emt 0:00:41]} Rg6 {[%emt 0:05:07]} 41. Rhd5 {[%emt 0:12:38]} Kc6 {[%emt 0:02:41]} 42. R5d4 {[%emt 0:01:45]} Re1+ {[%emt 0:05:12]} 43. Rd1 {[%emt 0:00:39]} Re2 {[%emt 0:00:37]} 44. h4 {[%emt 0:04:05]} e3 {[%emt 0:02:24]} 45. Re4 {[%emt 0:01:03]} Rgg2 {[%emt 0:01:41]} 46. Re6+ {[%emt 0:02:57] normal} 1/2-1/2

[Event "GER-ch Youth U16w 2019"]
[Site "Willingen"]
[Date "2019.06.12"]
[Round "5.6"]
[White "Khamenya, Vitalia"]
[Black "Berelowitsch, Dana"]
[Result "1/2-1/2"]
[ECO "B39"]
[WhiteElo "1877"]
[BlackElo "1753"]
[Annotator "NA"]
[PlyCount "58"]
[EventDate "2019.06.07"]
[EventType "swiss"]
[EventRounds "9"]
[EventCountry "GER"]
[SourceTitle "playchess.com"]
[Source "ChessBase"]
[SourceQuality "1"]
[TimeControl "40/5400+30:1800+30"]

1. e4 {[%emt 0:00:00]} c5 {[%emt 0:00:00]} 2. Nf3 {[%emt 0:00:00]} g6 {[%emt 0:00:00]} 3. d4 {[%emt 0:00:00]} cxd4 {[%emt 0:00:00]} 4. Nxd4 {[%emt 0:00:00]} Bg7 {[%emt 0:00:00]} 5. c4 {[%emt 0:00:00]} Nc6 {[%emt 0:00:00]} 6. Be3 {[%emt 0:00:00]} Nf6 {[%emt 0:00:16]} 7. Nc3 {[%emt 0:00:03]} Ng4 {[%emt 0:00:15]} 8. Qxg4 {[%emt 0:00:06]} Nxd4 {[%emt 0:00:05]} 9. Qd1 {[%emt 0:00:06]} e5 {[%emt 0:00:07]} 10. Bd3 {[%emt 0:00:57]} O-O {[%emt 0:00:22]} 11. O-O {[%emt 0:11:17]} d6 {[%emt 0:01:41]} 12. Ne2 {[%emt 0:13:33]} Be6 {[%emt 0:03:50]} 13. Rc1 {[%emt 0:02:29]} Rc8 {[%emt 0:06:10]} 14. b3 {[%emt 0:02:57]} a6 {[%emt 0:05:03]} 15. Bb1 {[%emt 0:01:04]} b5 {[%emt 0:13:55]} 16. Bxd4 {[%emt 0:13:22]} exd4 {[%emt 0:00:34]} 17. Nxd4 {[%emt 0:17:34]} Qb6 {[%emt 0:08:39]} 18. Nxe6 {[%emt 0:04:31]} fxe6 {[%emt 0:00:21]} 19. cxb5 {[%emt 0:00:22]} Rxc1 {[%emt 0:07:14]} 20. Qxc1 {[%emt 0:00:02]} axb5 {[%emt 0:03:12]} 21. Qd2 {[%emt 0:01:52]} Bd4 {[%emt 0:01:01]} 22. Bd3 {[%emt 0:01:18]} e5 {[%emt 0:11:17]} 23. Qe2 {[%emt 0:00:34]} b4 {[%emt 0:02:22]} 24. g3 {[%emt 0:00:26]} Kg7 {[%emt 0:01:57]} 25. Kg2 {[%emt 0:01:22]} Qa7 {[%emt 0:04:07]} 26. Bc4 {[%emt 0:06:51]} Ra8 {[%emt 0:02:21]} 27. Qg4 {[%emt 0:05:34]} Rf8 {[%emt 0:03:47]} 28. Qe2 {[%emt 0:02:58]} Ra8 {[%emt 0:00:35]} 29. Qg4 {[%emt 0:06:01]} Rf8 {[%emt 0:00:11] normal} 1/2-1/2

[Event "GER-ch Youth U16w 2019"]
[Site "Willingen"]
[Date "2019.06.12"]
[Round "5.7"]
[White "Rudolph, Eva"]
[Black "Peschel, Julia"]
[Result "1-0"]
[ECO "C44"]
[WhiteElo "1786"]
[BlackElo "1275"]
[Annotator "NA"]
[PlyCount "39"]
[EventDate "2019.06.07"]
[EventType "swiss"]
[EventRounds "9"]
[EventCountry "GER"]
[SourceTitle "playchess.com"]
[Source "ChessBase"]
[SourceQuality "1"]
[TimeControl "40/5400+30:1800+30"]

1. e4 {[%emt 0:00:00]} e5 {[%emt 0:00:00]} 2. Nf3 {[%emt 0:00:00]} Nc6 {[%emt 0:00:00]} 3. d4 {[%emt 0:00:00]} exd4 {[%emt 0:00:00]} 4. Bc4 {[%emt 0:00:00]} Bc5 {[%emt 0:00:09]} 5. Ng5 {[%emt 0:00:48]} d5 {[%emt 0:06:00]} 6. Bxd5 {[%emt 0:01:22]} Nh6 {[%emt 0:03:51]} 7. Nxf7 {[%emt 0:04:45]} Bb4+ {[%emt 0:13:53]} 8. c3 {[%emt 0:09:27]} Nxf7 {[%emt 0:02:41]} 9. cxb4 {[%emt 0:20:22]} Qf6 {[%emt 0:21:16]} 10. a3 {[%emt 0:12:52]} O-O {[%emt 0:02:35]} 11. O-O {[%emt 0:01:22]} Kh8 {[%emt 0:03:24]} 12. f4 {[%emt 0:03:37]} Rd8 {[%emt 0:12:15]} 13. Nd2 {[%emt 0:05:50]} a6 {[%emt 0:02:40]} 14. e5 {[%emt 0:15:27]} Qe7 {[%emt 0:02:15]} 15. Be4 {[%emt 0:00:30]} Nh6 {[%emt 0:00:59]} 16. Nf3 {[%emt 0:02:53]} Bf5 {[%emt 0:01:05]} 17. Qd3 {[%emt 0:01:51]} Bxe4 {[%emt 0:01:26]} 18. Qxe4 {[%emt 0:00:08]} Qf8 {[%emt 0:06:13]} 19. Ng5 {[%emt 0:01:03]} Re8 {[%emt 0:00:43]} 20. Qxh7# {[%emt 0:00:15] normal} 1-0

[Event "GER-ch Youth U16w 2019"]
[Site "Willingen"]
[Date "2019.06.12"]
[Round "5.8"]
[White "Bui, Ngoc Han Julia"]
[Black "Sinnhoefer, Lilian"]
[Result "1-0"]
[ECO "C54"]
[WhiteElo "1973"]
[BlackElo "1396"]
[Annotator "NA"]
[PlyCount "67"]
[EventDate "2019.06.07"]
[EventType "swiss"]
[EventRounds "9"]
[EventCountry "GER"]
[SourceTitle "playchess.com"]
[Source "ChessBase"]
[SourceQuality "1"]
[TimeControl "40/5400+30:1800+30"]

1. e4 {[%emt 0:00:00]} e5 {[%emt 0:00:00]} 2. Nf3 {[%emt 0:00:00]} Nc6 {[%emt 0:00:00]} 3. Bc4 {[%emt 0:00:00]} Bc5 {[%emt 0:00:14]} 4. c3 {[%emt 0:00:02]} Nf6 {[%emt 0:00:49]} 5. d3 {[%emt 0:00:41]} h6 {[%emt 0:00:58]} 6. O-O {[%emt 0:01:08]} d6 {[%emt 0:03:22]} 7. Nbd2 {[%emt 0:01:19]} O-O {[%emt 0:05:21]} 8. Re1 {[%emt 0:02:29]} a6 {[%emt 0:01:49]} 9. Bb3 {[%emt 0:00:21]} Bg4 {[%emt 0:02:20]} 10. Nf1 {[%emt 0:03:45]} Qd7 {[%emt 0:24:07]} 11. Be3 {[%emt 0:02:31]} Bxe3 {[%emt 0:15:11]} 12. Nxe3 {[%emt 0:00:48]} Be6 {[%emt 0:01:05]} 13. Bc2 {[%emt 0:08:49]} Rad8 {[%emt 0:06:07]} 14. d4 {[%emt 0:14:34]} exd4 {[%emt 0:04:26]} 15. Nxd4 {[%emt 0:00:57]} Nxd4 {[%emt 0:01:48]} 16. cxd4 {[%emt 0:03:00]} d5 {[%emt 0:02:41]} 17. e5 {[%emt 0:03:19]} Ng4 {[%emt 0:01:37]} 18. Nf1 {[%emt 0:05:06]} h5 {[%emt 0:04:48]} 19. h3 {[%emt 0:02:17]} Nh6 {[%emt 0:00:29]} 20. Qxh5 {[%emt 0:01:01]} Bf5 {[%emt 0:01:46]} 21. Bxf5 {[%emt 0:09:03]} Nxf5 {[%emt 0:00:38]} 22. Qg4 {[%emt 0:01:24]} g6 {[%emt 0:02:42]} 23. Ng3 {[%emt 0:02:23]} Nxg3 {[%emt 0:01:10]} 24. Qxg3 {[%emt 0:00:15]} Rde8 {[%emt 0:01:53]} 25. Rac1 {[%emt 0:05:42]} c6 {[%emt 0:03:29]} 26. Re3 {[%emt 0:03:47]} Qf5 {[%emt 0:03:45]} 27. Rce1 {[%emt 0:01:48]} Re6 {[%emt 0:00:43]} 28. f4 {[%emt 0:07:25]} Qc2 {[%emt 0:01:51]} 29. R1e2 {[%emt 0:04:35]} Qb1+ {[%emt 0:00:29]} 30. Kh2 {[%emt 0:00:12]} Kh7 {[%emt 0:01:23]} 31. a3 {[%emt 0:03:19]} Qf5 {[%emt 0:01:03]} 32. Qf2 {[%emt 0:00:32]} Rfe8 {[%emt 0:01:27]} 33. Re1 {[%emt 0:00:37]} Kg7 {[%emt 0:02:02]} 34. g4 {[%emt 0:01:45] normal} 1-0

[Event "GER-ch Youth U16w 2019"]
[Site "Willingen"]
[Date "2019.06.12"]
[Round "5.9"]
[White "Klemke, Kassandra"]
[Black "Zell, Hannah"]
[Result "1-0"]
[ECO "C42"]
[WhiteElo "1662"]
[BlackElo "1473"]
[Annotator "NA"]
[PlyCount "75"]
[EventDate "2019.06.07"]
[EventType "swiss"]
[EventRounds "9"]
[EventCountry "GER"]
[SourceTitle "playchess.com"]
[Source "ChessBase"]
[SourceQuality "1"]
[TimeControl "40/5400+30:1800+30"]

1. e4 {[%emt 0:00:00]} e5 {[%emt 0:00:00]} 2. Nf3 {[%emt 0:00:00]} Nf6 {[%emt 0:00:00]} 3. Nc3 {[%emt 0:00:00]} Bb4 {[%emt 0:00:00]} 4. d3 {[%emt 0:01:24]} Bxc3+ {[%emt 0:01:15]} 5. bxc3 {[%emt 0:00:11]} Nc6 {[%emt 0:00:07]} 6. Bg5 {[%emt 0:00:48]} d6 {[%emt 0:01:50]} 7. Be2 {[%emt 0:02:32]} h6 {[%emt 0:05:08]} 8. Bh4 {[%emt 0:00:55]} g5 {[%emt 0:02:45]} 9. Bg3 {[%emt 0:00:29]} b6 {[%emt 0:00:58]} 10. h3 {[%emt 0:04:17]} Bb7 {[%emt 0:01:42]} 11. Nh2 {[%emt 0:04:14]} Qe7 {[%emt 0:02:13]} 12. Ng4 {[%emt 0:03:43]} O-O-O {[%emt 0:01:17]} 13. Ne3 {[%emt 0:09:26]} Qf8 {[%emt 0:13:14]} 14. a4 {[%emt 0:04:15]} a5 {[%emt 0:07:15]} 15. Rb1 {[%emt 0:03:41]} Ne7 {[%emt 0:03:30]} 16. Nc4 {[%emt 0:01:54]} Nd7 {[%emt 0:03:20]} 17. Qc1 {[%emt 0:02:41]} Nc5 {[%emt 0:08:26]} 18. Qa3 {[%emt 0:02:18]} Bc6 {[%emt 0:04:47]} 19. Nb2 {[%emt 0:06:32]} f5 {[%emt 0:06:08]} 20. f3 {[%emt 0:00:53]} Qe8 {[%emt 0:02:03]} 21. d4 {[%emt 0:04:06]} exd4 {[%emt 0:06:56]} 22. cxd4 {[%emt 0:00:07]} Nd7 {[%emt 0:01:26]} 23. Ba6+ {[%emt 0:03:00]} Bb7 {[%emt 0:00:39]} 24. Bxb7+ {[%emt 0:00:15]} Kxb7 {[%emt 0:00:05]} 25. Nc4 {[%emt 0:00:11]} Ka7 {[%emt 0:01:05]} 26. Qc3 {[%emt 0:01:12]} Nc6 {[%emt 0:01:33]} 27. Na3 {[%emt 0:03:07]} Kb7 {[%emt 0:04:12]} 28. d5 {[%emt 0:01:12]} Na7 {[%emt 0:01:39]} 29. Nc4 {[%emt 0:01:04]} fxe4 {[%emt 0:04:08]} 30. O-O {[%emt 0:00:37]} Ka8 {[%emt 0:03:11]} 31. Rfe1 {[%emt 0:08:55]} Nc5 {[%emt 0:03:45]} 32. Ra1 {[%emt 0:09:49]} Rb8 {[%emt 0:04:39]} 33. fxe4 {[%emt 0:11:58]} Nxa4 {[%emt 0:02:42]} 34. Qg7 {[%emt 0:00:45]} Rb7 {[%emt 0:01:39]} 35. Rxa4 {[%emt 0:05:03]} b5 {[%emt 0:02:50]} 36. Rxa5 {[%emt 0:00:25]} bxc4 {[%emt 0:00:14]} 37. Rea1 {[%emt 0:01:18]} Kb8 {[%emt 0:00:51] normal} 38. Qd4 {[%emt 0:01:56] normal} 1-0

[Event "GER-ch Youth U16w 2019"]
[Site "Willingen"]
[Date "2019.06.12"]
[Round "5.10"]
[White "Ziegenfuss, Larissa"]
[Black "Schneider, Katharina"]
[Result "1-0"]
[ECO "C88"]
[WhiteElo "1771"]
[BlackElo "1784"]
[Annotator "NA"]
[PlyCount "55"]
[EventDate "2019.06.07"]
[EventType "swiss"]
[EventRounds "9"]
[EventCountry "GER"]
[SourceTitle "playchess.com"]
[Source "ChessBase"]
[SourceQuality "1"]
[TimeControl "40/5400+30:1800+30"]

1. e4 {[%emt 0:00:00]} e5 {[%emt 0:00:00]} 2. Nf3 {[%emt 0:00:00]} Nc6 {[%emt 0:00:00]} 3. Bb5 {[%emt 0:00:00]} a6 {[%emt 0:00:00]} 4. Ba4 {[%emt 0:00:00]} Nf6 {[%emt 0:00:00]} 5. O-O {[%emt 0:00:00]} Be7 {[%emt 0:00:04]} 6. Re1 {[%emt 0:00:07]} b5 {[%emt 0:00:07]} 7. Bb3 {[%emt 0:00:05]} O-O {[%emt 0:00:17]} 8. a4 {[%emt 0:00:17]} Bb7 {[%emt 0:05:30]} 9. d3 {[%emt 0:00:28]} d6 {[%emt 0:06:54]} 10. Bd2 {[%emt 0:00:10]} Na7 {[%emt 0:08:07]} 11. Na3 {[%emt 0:07:18]} c5 {[%emt 0:04:04]} 12. c4 {[%emt 0:01:09]} b4 {[%emt 0:02:05]} 13. Nc2 {[%emt 0:00:14]} Nc6 {[%emt 0:02:48]} 14. Ne3 {[%emt 0:03:16]} a5 {[%emt 0:15:22]} 15. h3 {[%emt 0:07:14]} Nd7 {[%emt 0:09:56]} 16. Nf5 {[%emt 0:03:02]} Nd4 {[%emt 0:06:13]} 17. N3xd4 {[%emt 0:01:33]} cxd4 {[%emt 0:00:32]} 18. Qg4 {[%emt 0:13:03]} g6 {[%emt 0:03:31]} 19. Bh6 {[%emt 0:16:23]} Nf6 {[%emt 0:05:53]} 20. Nxe7+ {[%emt 0:08:33]} Kh8 {[%emt 0:02:54]} 21. Qh4 {[%emt 0:04:04]} Qxe7 {[%emt 0:03:06]} 22. Bg5 {[%emt 0:09:05]} Qe6 {[%emt 0:01:51]} 23. Bxf6+ {[%emt 0:00:34]} Kg8 {[%emt 0:00:05]} 24. c5 {[%emt 0:00:57]} d5 {[%emt 0:00:37]} 25. exd5 {[%emt 0:00:08]} Qa6 {[%emt 0:00:46]} 26. Bc4 {[%emt 0:00:17]} Qa7 {[%emt 0:00:04]} 27. Qh6 {[%emt 0:00:09]} Qxc5 {[%emt 0:00:14]} 28. Qg7# {normal} 1-0

[Event "GER-ch Youth U16w 2019"]
[Site "Willingen"]
[Date "2019.06.12"]
[Round "5.11"]
[White "Wucherer, Sophie"]
[Black "Meijerink, Inken"]
[Result "1/2-1/2"]
[ECO "D37"]
[WhiteElo "1496"]
[BlackElo "1681"]
[Annotator "NA"]
[PlyCount "90"]
[EventDate "2019.06.07"]
[EventType "swiss"]
[EventRounds "9"]
[EventCountry "GER"]
[SourceTitle "playchess.com"]
[Source "ChessBase"]
[SourceQuality "1"]
[TimeControl "40/5400+30:1800+30"]

1. d4 {[%emt 0:00:00]} Nf6 {[%emt 0:00:00]} 2. Nf3 {[%emt 0:00:00]} d5 {[%emt 0:00:00]} 3. c4 {[%emt 0:00:00]} e6 {[%emt 0:00:00]} 4. Nc3 {[%emt 0:00:00]} dxc4 {[%emt 0:00:12]} 5. e3 {[%emt 0:00:15]} a6 {[%emt 0:00:18]} 6. Bxc4 {[%emt 0:07:48]} b5 {[%emt 0:00:10]} 7. Bd3 {[%emt 0:00:06]} Bb7 {[%emt 0:00:44]} 8. a3 {[%emt 0:01:44]} c5 {[%emt 0:00:50]} 9. O-O {[%emt 0:03:09]} Nbd7 {[%emt 0:02:01]} 10. Qe2 {[%emt 0:00:57]} Be7 {[%emt 0:03:23]} 11. Rd1 {[%emt 0:01:20]} Qc7 {[%emt 0:00:32]} 12. h3 {[%emt 0:02:34]} O-O {[%emt 0:01:52]} 13. Bd2 {[%emt 0:04:05]} c4 {[%emt 0:02:40]} 14. Bc2 {[%emt 0:01:49]} e5 {[%emt 0:10:56]} 15. dxe5 {[%emt 0:10:23]} Nxe5 {[%emt 0:00:09]} 16. Nd4 {[%emt 0:01:00]} Bc5 {[%emt 0:02:06]} 17. Nf5 {[%emt 0:11:54]} Rad8 {[%emt 0:11:23]} 18. Be1 {[%emt 0:10:02]} Rfe8 {[%emt 0:09:05]} 19. Rxd8 {[%emt 0:05:54]} Qxd8 {[%emt 0:00:33]} 20. Rd1 {[%emt 0:02:27]} Qa8 {[%emt 0:00:18]} 21. e4 {[%emt 0:00:42]} Nd3 {[%emt 0:01:15]} 22. Bxd3 {[%emt 0:01:00]} cxd3 {[%emt 0:00:06]} 23. Qxd3 {[%emt 0:00:11]} Nxe4 {[%emt 0:02:04]} 24. Nxe4 {[%emt 0:02:08]} Bxe4 {[%emt 0:00:31]} 25. Qc3 {[%emt 0:02:20]} Bxf2+ {[%emt 0:02:32]} 26. Bxf2 {[%emt 0:00:10]} Bxf5 {[%emt 0:00:04]} 27. Bd4 {[%emt 0:03:30]} f6 {[%emt 0:01:28]} 28. Qg3 {[%emt 0:01:57]} Bg6 {[%emt 0:03:26]} 29. Be3 {[%emt 0:14:00]} Qe4 {[%emt 0:09:08]} 30. Bc1 {[%emt 0:07:16]} Qe2 {[%emt 0:05:21]} 31. Qb3+ {[%emt 0:01:50]} Kh8 {[%emt 0:02:20]} 32. Rf1 {[%emt 0:00:22]} Bd3 {[%emt 0:00:39]} 33. Qd1 {[%emt 0:00:53]} Qxf1+ {[%emt 0:00:58]} 34. Qxf1 {[%emt 0:00:08]} Bxf1 {[%emt 0:00:03]} 35. Kxf1 {[%emt 0:00:07]} g5 {[%emt 0:00:52]} 36. Bd2 {[%emt 0:00:22]} Kg7 {[%emt 0:00:10]} 37. Kf2 {[%emt 0:00:53]} Kg6 {[%emt 0:00:24]} 38. Kf3 {[%emt 0:02:15]} Rd8 {[%emt 0:00:45]} 39. Ke3 {[%emt 0:01:24]} f5 {[%emt 0:00:12]} 40. Bc3 {[%emt 0:00:32]} h5 {[%emt 0:00:56]} 41. g3 {[%emt 0:31:22]} Rd1 {[%emt 0:31:02]} 42. Kf2 {[%emt 0:00:27]} f4 {[%emt 0:00:39]} 43. Be5 {[%emt 0:00:00]} fxg3+ {[%emt 0:00:00]} 44. Kxg3 {[%emt 0:00:00]} Kf5 {[%emt 0:00:00]} 45. Bc3 {[%emt 0:00:00]} Rd3+ {[%emt 0:00:00] normal} 1/2-1/2

[Event "GER-ch Youth U16w 2019"]
[Site "Willingen"]
[Date "2019.06.12"]
[Round "5.12"]
[White "Dietz, Helena"]
[Black "Jacoby, Angelina"]
[Result "1/2-1/2"]
[ECO "A45"]
[WhiteElo "1534"]
[BlackElo "1412"]
[Annotator "NA"]
[PlyCount "56"]
[EventDate "2019.06.07"]
[EventType "swiss"]
[EventRounds "9"]
[EventCountry "GER"]
[SourceTitle "playchess.com"]
[Source "ChessBase"]
[SourceQuality "1"]
[TimeControl "40/5400+30:1800+30"]

1. d4 {[%emt 0:00:00]} Nf6 {[%emt 0:00:00]} 2. Bf4 {[%emt 0:00:00]} g6 {[%emt 0:00:00]} 3. e3 {[%emt 0:00:00]} Bg7 {[%emt 0:00:05]} 4. Nf3 {[%emt 0:00:01]} O-O {[%emt 0:00:13]} 5. Be2 {[%emt 0:00:23]} d6 {[%emt 0:00:11]} 6. h3 {[%emt 0:00:13]} Nfd7 {[%emt 0:00:42]} 7. O-O {[%emt 0:01:31]} e5 {[%emt 0:01:10]} 8. Bh2 {[%emt 0:00:28]} f5 {[%emt 0:10:42]} 9. c4 {[%emt 0:03:02]} Qe7 {[%emt 0:05:16]} 10. Nc3 {[%emt 0:01:41]} c6 {[%emt 0:05:10]} 11. b4 {[%emt 0:04:18]} g5 {[%emt 0:02:22]} 12. Rc1 {[%emt 0:13:37]} h5 {[%emt 0:03:53]} 13. dxe5 {[%emt 0:13:04]} dxe5 {[%emt 0:03:52]} 14. b5 {[%emt 0:01:56]} g4 {[%emt 0:00:34]} 15. hxg4 {[%emt 0:01:26]} hxg4 {[%emt 0:00:08]} 16. Ne1 {[%emt 0:06:59]} Qh4 {[%emt 0:00:59]} 17. Qd6 {[%emt 0:07:43]} Kf7 {[%emt 0:01:56]} 18. Bg3 {[%emt 0:04:11]} Qh6 {[%emt 0:06:08]} 19. Qxh6 {[%emt 0:03:57]} Bxh6 {[%emt 0:00:06]} 20. Nd3 {[%emt 0:00:33]} Bg7 {[%emt 0:01:04]} 21. Rfd1 {[%emt 0:02:09]} e4 {[%emt 0:07:24]} 22. Nf4 {[%emt 0:04:31]} Ne5 {[%emt 0:03:59]} 23. Rd6 {[%emt 0:05:35]} Nbd7 {[%emt 0:02:26]} 24. Ne6 {[%emt 0:11:14]} Ke7 {[%emt 0:03:03]} 25. Nxf8 {[%emt 0:02:22]} Kxd6 {[%emt 0:01:01]} 26. Ng6 {[%emt 0:02:33]} Ke6 {[%emt 0:02:19]} 27. Nf4+ {[%emt 0:00:56]} Ke7 {[%emt 0:00:50]} 28. Bh4+ {[%emt 0:03:08]} Nf6 {[%emt 0:08:25] normal} 1/2-1/2

[Event "GER-ch Youth U16w 2019"]
[Site "Willingen"]
[Date "2019.06.12"]
[Round "5.13"]
[White "Genova, Magdalina"]
[Black "Huppert, Anna"]
[Result "0-1"]
[ECO "A25"]
[WhiteElo "1421"]
[BlackElo "1515"]
[Annotator "NA"]
[PlyCount "48"]
[EventDate "2019.06.07"]
[EventType "swiss"]
[EventRounds "9"]
[EventCountry "GER"]
[SourceTitle "playchess.com"]
[Source "ChessBase"]
[SourceQuality "1"]
[TimeControl "40/5400+30:1800+30"]

1. c4 {[%emt 0:00:00]} e5 {[%emt 0:00:00]} 2. Nc3 {[%emt 0:00:00]} Nc6 {[%emt 0:00:00]} 3. g3 {[%emt 0:01:12]} g6 {[%emt 0:00:00]} 4. Bg2 {[%emt 0:00:34]} Bg7 {[%emt 0:00:00]} 5. e3 {[%emt 0:00:32]} Nge7 {[%emt 0:01:25]} 6. Nge2 {[%emt 0:01:14]} d6 {[%emt 0:00:21]} 7. O-O {[%emt 0:05:39]} O-O {[%emt 0:01:04]} 8. d4 {[%emt 0:02:59]} exd4 {[%emt 0:06:41]} 9. exd4 {[%emt 0:07:17]} Bd7 {[%emt 0:03:25]} 10. Be3 {[%emt 0:37:59]} a5 {[%emt 0:13:19]} 11. Qd2 {[%emt 0:05:40]} Re8 {[%emt 0:05:57]} 12. Bh6 {[%emt 0:02:49]} Bh8 {[%emt 0:00:52]} 13. Nd5 {[%emt 0:11:41]} Nf5 {[%emt 0:08:33]} 14. Bg5 {[%emt 0:03:21]} Rxe2 {[%emt 0:14:12]} 15. Qxe2 {[%emt 0:05:40]} Qxg5 {[%emt 0:01:28]} 16. Nxc7 {[%emt 0:01:21]} Rc8 {[%emt 0:03:43]} 17. Nb5 {[%emt 0:01:30]} Ncxd4 {[%emt 0:07:15]} 18. Nxd4 {[%emt 0:01:13]} Nxd4 {[%emt 0:00:17]} 19. Qd3 {[%emt 0:00:33]} Bc6 {[%emt 0:04:43]} 20. Rad1 {[%emt 0:02:10]} b5 {[%emt 0:05:06]} 21. Bxc6 {[%emt 0:05:40]} bxc4 {[%emt 0:01:23]} 22. Qxc4 {[%emt 0:00:52]} Rxc6 {[%emt 0:00:48]} 23. Qd3 {[%emt 0:00:21]} Qd5 {[%emt 0:03:50]} 24. f3 {[%emt 0:01:07]} Qxa2 {[%emt 0:02:10] normal} 0-1